bitfinex/quotes_ETHUSD_20250404
["timestamp","ask_amount","ask_price","bid_price","bid_amount"]
[1743750350771,6.08985,1805.1,1805.0,11.473]
[1743750351665,6.08985,1805.1,1805.0,6.11]
[1743750351870,6.89475,1805.1,1805.0,11.474]
[1743750356289,6.08985,1805.1,1805.0,11.474]
[1743750357906,7.252797,1805.1,1805.0,11.474]
[1743750358056,6.08985,1805.1,1805.0,11.474]
[1743750360212,6.89505,1805.1,1805.0,6.11]
[1743750360900,6.08985,1805.1,1805.0,6.11]
[1743750362508,6.08985,1805.1,1805.0,11.456]
[1743750364905,0.8052,1805.5,1805.0,11.456]
[1743750365217,0.55,1805.4,1805.2,0.7586]
[1743750365433,5.53899,1805.4,1805.2,0.7586]
[1743750365581,5.53886,1805.5,1805.2,0.7586]
[1743750366023,6.08896,1805.4,1805.2,0.7586]
[1743750366319,0.55,1805.1,1805.0,6.11]
[1743750366521,6.09016,1805.0,1804.9,6.11]
[1743750366741,6.09016,1805.0,1804.9,5.351]
[1743750367844,6.34518,1805.1,1804.9,5.351]
[1743750368144,6.34518,1805.1,1804.9,5.8861]
[1743750368145,11.08003,1805.1,1804.9,5.8861]
[1743750368519,5.53998,1805.1,1804.9,5.8861]
[1743750368721,5.54016,1805.0,1804.9,6.6805]
[1743750369344,5.54016,1805.0,1804.9,5.351]
[1743750370140,0.55,1805.0,1804.9,5.351]
[1743750370320,5.53925,1805.3,1805.0,0.8132]
[1743750370849,5.53955,1805.2,1805.0,0.8132]
[1743750371024,5.53925,1805.3,1805.0,0.8132]
[1743750371233,11.07869,1805.3,1805.0,2.537685]
[1743750371551,4.3325,1805.5,1805.0,8.077665]
[1743750371552,5.53895,1805.4,1805.0,8.077665]
[1743750371751,5.53936,1805.3,1805.1,6.11]
[1743750372054,6.08955,1805.2,1805.1,6.11]
[1743750372648,5.53936,1805.3,1805.1,6.11]
[1743750372823,5.53936,1805.3,1805.2,0.611]
[1743750373023,5.53936,1805.3,1805.1,6.11]
[1743750373260,11.07881,1805.3,1805.1,6.11]
[1743750373551,5.53955,1805.2,1805.1,6.11]
[1743750373847,5.53936,1805.3,1805.1,6.11]
[1743750374351,5.53955,1805.2,1805.1,6.11]
[1743750374515,5.53955,1805.2,1805.1,11.459]
[1743750374516,6.08955,1805.2,1805.1,11.459]
[1743750375260,5.53918,1805.4,1805.1,12.6049]
[1743750375410,8.53946,1805.3,1805.1,12.6049]
[1743750375609,5.53955,1805.2,1805.1,12.6049]
[1743750376312,5.53955,1805.2,1805.1,11.459]
[1743750376559,3.55,1805.2,1804.8,6.9232]
[1743750376712,6.09047,1804.9,1804.8,11.458]
[1743750377152,0.55,1804.9,1804.8,11.458]
[1743750377777,6.09047,1804.9,1804.8,6.11]
[1743750378048,6.09047,1804.9,1804.8,11.456]
[1743750378448,5.5403,1805.0,1804.8,11.456]
[1743750378654,5.5403,1805.0,1804.8,12.6016]
[1743750378872,5.54047,1804.9,1804.8,12.6016]
[1743750379024,5.54047,1804.9,1804.8,11.456]
[1743750380051,6.09047,1804.9,1804.8,6.11]
[1743750380214,6.09047,1804.9,1804.8,11.459]
[1743750380619,5.54078,1804.8,1804.7,6.11]
[1743750381251,6.09078,1804.8,1804.7,6.11]
[1743750382120,11.08117,1804.9,1804.7,8.069]
[1743750382656,5.54021,1805.0,1804.7,8.069]
[1743750382867,5.54048,1804.9,1804.7,8.069]
[1743750384560,11.08117,1804.9,1804.7,8.069]
[1743750384760,5.54078,1804.8,1804.7,6.9232]
[1743750384922,5.54048,1804.9,1804.7,6.9232]
[1743750385759,11.08117,1804.9,1804.7,6.9232]
[1743750386061,0.55,1805.1,1804.7,6.97860641]
[1743750386246,6.09003,1805.1,1804.7,6.97860641]
[1743750386450,6.35127,1805.5,1804.9,0.7792]
[1743750386761,11.07813,1805.4,1805.1,0.7792]
[1743750386930,5.53925,1805.3,1805.1,0.7792]
[1743750387961,11.07812,1805.4,1805.1,0.7792]
[1743750388263,5.53897,1805.4,1805.1,2.557226]
[1743750388849,5.53929,1805.3,1805.1,2.557226]
[1743750389025,5.53929,1805.3,1805.1,0.7792]
[1743750390528,6.08985,1805.1,1805.0,11.458]
[1743750391241,6.08985,1805.1,1805.0,6.11]
[1743750391449,6.08985,1805.1,1805.0,11.457]
[1743750392746,0.55,1805.2,1805.0,11.457]
[1743750392952,5.53985,1805.1,1805.0,11.457]
[1743750394885,11.62957,1805.2,1805.0,11.457]
[1743750395190,5.53985,1805.1,1805.0,11.457]
[1743750395985,7.252813,1805.1,1805.0,11.456]
[1743750398286,6.08985,1805.1,1805.0,11.456]
[1743750399060,6.08966,1805.2,1805.0,11.456]
[1743750399315,6.08966,1805.2,1805.0,12.2259]
[1743750399695,5.53966,1805.2,1805.0,12.2259]
[1743750399896,11.07942,1805.2,1805.0,12.2259]
[1743750400126,5.53985,1805.1,1805.0,12.2259]
[1743750400694,5.53966,1805.2,1805.0,12.2259]
[1743750400894,5.53933,1805.3,1805.0,18.98849]
[1743750401083,5.53933,1805.3,1805.1,6.11]
[1743750401924,5.53955,1805.2,1805.1,6.11]
[1743750408924,6.90195,1805.2,1805.1,11.434]
[1743750409125,8.95412278,1805.2,1805.1,11.434]
[1743750410234,6.90195,1805.2,1805.1,11.434]
[1743750411055,6.08955,1805.2,1805.1,11.434]
[1743750411224,6.08935,1805.3,1805.1,12.2039]
[1743750411415,5.53865,1805.5,1805.1,17.74346]
[1743750411614,5.53894,1805.4,1805.2,6.11]
[1743750412060,11.07807,1805.4,1805.2,6.11]
[1743750412355,5.53924,1805.3,1805.2,6.11]
[1743750412741,5.53894,1805.4,1805.2,6.11]
[1743750413621,11.07807,1805.4,1805.2,6.11]
[1743750414384,5.53924,1805.3,1805.2,6.11]
[1743750415225,7.277458,1805.3,1805.2,6.11]
[1743750415565,10.277458,1805.3,1805.2,6.11]
[1743750415770,10.277458,1805.3,1805.2,11.432]
[1743750416062,12.81853583,1805.3,1805.2,11.432]
[1743750416266,12.81853583,1805.3,1805.2,6.11]
[1743750416432,13.62253583,1805.3,1805.2,6.11]
[1743750416626,5.54108,1804.7,1804.6,39.886]
[1743750416830,6.09108,1804.7,1804.6,46.046]
[1743750417140,6.09108,1804.7,1804.6,51.373]
[1743750418036,5.53903,1805.4,1804.6,52.1661]
[1743750418037,2.16625358,1805.2,1804.6,52.1661]
[1743750418253,6.09029,1805.0,1804.7,11.70106]
[1743750418457,11.08071,1805.0,1804.7,6.16]
[1743750418782,5.54029,1805.0,1804.7,6.16]
[1743750419780,11.08073,1805.0,1804.7,6.16]
[1743750420078,5.54029,1805.0,1804.7,6.16]
[1743750420279,5.53985,1805.1,1804.7,11.70106]
[1743750420477,6.34365,1805.2,1804.7,6.16]
[1743750420680,6.34365,1805.2,1804.6,46.0061]
[1743750420681,6.08927,1805.3,1804.9,0.7931]
[1743750420867,6.08927,1805.3,1805.0,5.324]
[1743750421073,5.53967,1805.2,1805.0,11.484]
[1743750421271,5.53927,1805.3,1805.0,11.484]
[1743750421947,11.07873,1805.3,1805.0,11.484]
[1743750422147,5.53955,1805.2,1805.0,11.484]
[1743750422373,5.53955,1805.2,1805.0,13.39123473]
[1743750422760,5.53927,1805.3,1805.0,13.39123473]
[1743750423079,5.53896,1805.4,1805.0,13.39123473]
[1743750423295,5.95542453,1805.8,1805.2,5.53952]
[1743750423296,5.53813,1805.7,1805.2,5.53952]
[1743750423450,5.5375,1805.9,1805.5,5.53843]
[1743750423655,5.53774,1805.8,1805.6,5.325]
[1743750423858,5.53774,1805.8,1805.7,6.16]
[1743750425163,6.09125,1805.9,1805.7,6.16]
[1743750425490,5.53771,1805.8,1805.7,6.16]
[1743750425692,6.09125,1805.9,1805.7,6.16]
[1743750425896,6.09125,1805.9,1805.7,6.9531]
[1743750426099,11.62889,1805.9,1805.7,6.9531]
[1743750426307,6.34108,1806.1,1805.7,6.9531]
[1743750426603,5.53724,1806.0,1805.7,6.9531]
[1743750427911,5.5374,1805.9,1805.7,6.9531]
[1743750428088,6.08771,1805.8,1805.7,6.16]
[1743750428412,7.50432878,1805.8,1805.7,11.484]
[1743750428703,7.50432878,1805.8,1805.7,5.324]
[1743750428903,8.27732878,1805.8,1805.7,5.324]
[1743750429107,6.31163,1805.5,1805.4,5.33]
[1743750429311,13.58771483,1805.5,1805.4,5.33]
[1743750430397,5.54016,1805.0,1804.9,6.16]
[1743750430580,5.54016,1805.0,1804.9,5.329]
[1743750430581,6.09016,1805.0,1804.9,5.329]
[1743750431468,6.09016,1805.0,1804.7,6.16]
[1743750431469,5.54075,1804.9,1804.7,6.16]
[1743750431816,5.54075,1804.9,1804.8,5.327]
[1743750433518,5.54047,1804.9,1804.8,5.327]
[1743750434810,5.54047,1804.9,1804.8,5.323]
[1743750435876,3.773,1805.4,1804.9,6.30581]
[1743750436072,5.53948,1805.3,1805.0,6.16]
[1743750436319,5.53985,1805.1,1805.0,6.16]
[1743750436488,6.08985,1805.1,1805.0,6.16]
[1743750436925,5.53985,1805.1,1805.0,6.16]
[1743750437609,6.08985,1805.1,1805.0,6.16]
[1743750438117,5.53985,1805.1,1805.0,6.16]
[1743750438616,5.53966,1805.2,1805.0,6.16]
[1743750439299,5.53966,1805.2,1805.1,6.16]
[1743750439811,7.19755,1805.2,1805.1,6.16]
[1743750441781,6.08966,1805.2,1805.1,6.16]
[1743750444221,8.53946,1805.3,1805.1,6.16]
[1743750444382,5.53913,1805.4,1805.2,6.0749]
[1743750444584,5.53924,1805.3,1805.2,6.0749]
[1743750444882,5.53913,1805.4,1805.2,6.0749]
[1743750445083,5.53913,1805.4,1805.2,12.2349]
[1743750445423,11.07702,1805.6,1805.3,6.16]
[1743750445582,5.53869,1805.5,1805.3,6.16]
[1743750446404,5.53893,1805.4,1805.3,6.16]
[1743750446792,5.20141878,1805.8,1805.3,6.16]
[1743750446793,11.07687,1805.6,1805.3,6.16]
[1743750447098,11.07759,1805.5,1805.3,6.16]
[1743750447300,5.53869,1805.5,1805.3,6.16]
[1743750448450,6.08812,1805.7,1805.3,7.505839]
[1743750448747,5.53753,1805.9,1805.5,5.5385]
[1743750448948,11.07514,1805.9,1805.6,5.318]
[1743750449954,5.53753,1805.9,1805.6,5.318]
[1743750450251,5.53863,1805.5,1805.4,6.16]
[1743750450452,5.53863,1805.5,1805.4,11.479]
[1743750451643,5.53835,1805.6,1805.4,11.479]
[1743750452152,11.07687,1805.6,1805.4,11.479]
[1743750452310,11.07694,1805.6,1805.4,11.479]
[1743750452837,6.08803,1805.7,1805.4,11.479]
[1743750453025,6.08806,1805.7,1805.5,0.7756]
[1743750453349,11.07685,1805.6,1805.4,11.479]
[1743750453853,5.53863,1805.5,1805.4,11.479]
[1743750455256,5.53863,1805.5,1805.4,6.16]
[1743750455414,5.53863,1805.5,1805.4,11.476]
[1743750456736,7.196325,1805.5,1805.4,6.16]
[1743750456927,7.196325,1805.5,1805.4,11.478]
[1743750457255,10.196325,1805.5,1805.4,11.478]
[1743750457460,10.967325,1805.5,1805.4,6.16]
[1743750459666,5.53924,1805.3,1805.1,6.16]
[1743750459872,5.53955,1805.2,1805.1,6.16]
[1743750461164,6.08955,1805.2,1805.1,6.16]
[1743750461371,6.84235,1805.2,1805.1,6.16]
[1743750461966,6.08955,1805.2,1805.1,6.16]
[1743750462839,6.84235,1805.2,1805.1,6.16]
[1743750463041,8.44534604,1805.2,1805.1,6.16]
[1743750463265,11.44534604,1805.2,1805.1,6.16]
[1743750463445,6.09016,1805.0,1804.9,11.471]
[1743750465292,5.5393,1805.3,1804.9,12.2577]
[1743750465591,6.08958,1805.2,1805.0,1.22577]
[1743750466188,11.62932,1805.2,1805.0,1.22577]
[1743750466388,5.53985,1805.1,1804.9,12.2577]
[1743750467080,6.08958,1805.2,1804.9,12.2577]
[1743750467889,0.55,1805.2,1804.9,17.79801]
[1743750468594,6.08966,1805.2,1805.0,6.16]
[1743750469507,0.55,1805.3,1805.0,11.69992]
[1743750469682,11.62869,1805.3,1805.0,7.939762]
[1743750469881,5.53955,1805.2,1805.0,7.939762]
[1743750470691,6.08926,1805.3,1805.0,13.479912]
[1743750470915,6.08926,1805.3,1805.0,7.939762]
[1743750471074,6.08926,1805.3,1805.1,0.7867]
[1743750471607,5.53868,1805.5,1805.2,6.16]
[1743750471913,3.324,1805.9,1805.5,5.5384]
[1743750471914,5.53759,1805.9,1805.5,5.5384]
[1743750472080,5.53772,1805.8,1805.6,6.16]
[1743750472282,5.53772,1805.8,1805.7,5.311]
[1743750474532,11.07514,1805.9,1805.7,5.311]
[1743750474812,5.53744,1805.9,1805.7,6.1172]
[1743750475111,11.07504,1805.9,1805.7,6.1172]
[1743750475711,5.53744,1805.9,1805.7,6.1172]
[1743750475888,11.07504,1805.9,1805.7,6.1172]
[1743750476410,5.53744,1805.9,1805.7,6.1172]
[1743750476774,5.53771,1805.8,1805.7,6.1172]
[1743750476975,5.53771,1805.8,1805.7,5.311]
[1743750477411,5.53771,1805.8,1805.7,11.471]
[1743750478206,6.08771,1805.8,1805.7,11.471]
[1743750479205,11.07503,1805.9,1805.7,11.471]
[1743750479410,5.53771,1805.8,1805.7,11.471]
[1743750480528,5.53631,1806.3,1805.7,11.471]
[1743750480529,6.34372,1806.3,1805.8,0.755]
[1743750480825,5.53642,1806.3,1806.0,6.29209]
[1743750480985,5.53537,1806.6,1806.1,17.00376]
[1743750481189,5.53537,1806.6,1806.2,6.29131]
[1743750481525,5.53537,1806.6,1806.3,6.16]
[1743750482884,6.39164,1806.9,1806.6,5.53525]
[1743750483084,5.58437,1806.9,1806.7,11.469]
[1743750484326,5.53464,1806.8,1806.7,11.469]
[1743750484541,6.08464,1806.8,1806.7,6.16]
[1743750484693,7.332271,1806.8,1806.7,11.471]
[1743750485314,6.08464,1806.8,1806.7,11.471]
[1743750487218,5.58437,1806.9,1806.7,12.226]
[1743750488365,11.11895,1806.9,1806.7,12.226]
[1743750488668,5.58437,1806.9,1806.7,12.226]
[1743750490166,11.11893,1806.9,1806.7,12.226]
[1743750490456,5.53464,1806.8,1806.7,11.471]
[1743750491655,5.58437,1806.9,1806.7,11.471]
[1743750492060,5.58437,1806.9,1806.8,6.9367]
[1743750492525,0.05,1806.9,1806.8,6.9367]
[1743750492724,0.05,1806.9,1806.8,12.52668517]
[1743750492932,0.05,1806.9,1806.8,14.4910862]
[1743750493863,5.53283,1807.4,1807.0,5.53403]
[1743750494027,5.53283,1807.4,1807.1,12.1987]
[1743750494227,5.53321,1807.3,1807.1,12.1987]
[1743750494562,5.53235,1807.6,1807.2,5.53342]
[1743750494769,5.53252,1807.5,1807.3,0.553342]
[1743750494972,6.08252,1807.5,1807.4,6.11]
[1743750497276,9.08252,1807.5,1807.4,6.11]
[1743750505755,13.21892,1807.5,1807.4,6.11]
[1743750506382,9.89492,1807.5,1807.4,6.11]
[1743750506576,9.08252,1807.5,1807.4,6.11]
[1743750508353,10.70099628,1807.5,1807.4,6.11]
[1743750509690,9.08252,1807.5,1807.4,6.11]
[1743750513692,9.89492,1807.5,1807.4,6.11]
[1743750514014,13.21892,1807.5,1807.4,6.11]
[1743750514193,13.21892,1807.5,1807.1,5.313]
[1743750514194,5.53342,1807.2,1807.1,5.313]
[1743750514399,5.53372,1807.1,1807.0,11.423]
[1743750514799,9.08372,1807.1,1807.0,5.313]
[1743750515811,5.53525,1806.6,1806.5,6.11]
[1743750516018,5.53525,1806.6,1806.5,11.426]
[1743750516304,6.86815,1806.6,1806.5,11.426]
[1743750516668,7.28523401,1806.6,1806.5,11.426]
[1743750516874,6.50233401,1806.6,1806.5,11.426]
[1743750517072,6.08525,1806.6,1806.5,12.6503]
[1743750517707,6.08525,1806.6,1806.5,11.426]
[1743750519508,12.43819043,1806.6,1806.5,11.426]
[1743750519928,5.53507,1806.7,1806.5,12.2064]
[1743750519929,5.53508,1806.7,1806.5,12.2064]
[1743750520086,5.53399,1807.1,1806.7,6.31533]
[1743750520294,5.53434,1806.9,1806.8,6.741533]
[1743750520594,6.08434,1806.9,1806.8,6.741533]
[1743750520823,5.53434,1806.9,1806.8,6.11]
[1743750521820,6.08434,1806.9,1806.8,6.11]
[1743750523599,11.62488043,1806.9,1806.8,6.11]
[1743750523806,12.43728043,1806.9,1806.8,6.11]
[1743750524192,6.90294043,1806.9,1806.8,6.11]
[1743750524395,12.43728043,1806.9,1806.8,6.11]
[1743750526708,11.62488043,1806.9,1806.8,6.11]
[1743750526907,9.08434,1806.9,1806.8,6.11]
[1743750527342,8.53434,1806.9,1806.8,6.11]
[1743750527639,9.08434,1806.9,1806.8,6.11]
[1743750528347,11.62488043,1806.9,1806.8,6.11]
[1743750528646,13.34077547,1806.9,1806.8,6.11]
[1743750530146,11.62488043,1806.9,1806.8,6.11]
[1743750530956,9.08434,1806.9,1806.8,6.11]
[1743750531746,11.62488043,1806.9,1806.8,6.11]
[1743750532163,12.40708043,1806.9,1806.8,6.11]
[1743750532324,6.08495,1806.7,1806.6,6.11]
[1743750532523,6.08495,1806.7,1806.4,5.341]
[1743750532524,9.08525,1806.6,1806.5,6.11]
[1743750534755,9.08525,1806.6,1806.5,6.8757]
[1743750536956,9.50803138,1806.6,1806.5,6.11]
[1743750538862,9.08525,1806.6,1806.5,6.11]
[1743750540562,9.08525,1806.6,1806.5,6.8757]
[1743750541375,0.55,1806.7,1806.5,8.09737]
[1743750541560,5.53472,1806.8,1806.5,8.09737]
[1743750541755,5.53472,1806.8,1806.6,6.8757]
[1743750541957,5.53495,1806.7,1806.6,6.8757]
[1743750542354,6.08495,1806.7,1806.6,6.8757]
[1743750542875,5.53472,1806.8,1806.6,7.685437]
[1743750543074,6.08467,1806.8,1806.6,7.685437]
[1743750543278,5.53406,1807.0,1806.6,7.685437]
[1743750543482,5.53484,1806.8,1806.6,7.685437]
[1743750543790,5.53437,1806.9,1806.6,7.685437]
[1743750544088,5.53437,1806.9,1806.7,0.7685437]
[1743750544258,6.08434,1806.9,1806.8,5.347]
[1743750544455,6.08434,1806.9,1806.8,11.457]
[1743750544867,6.08434,1806.9,1806.8,12.2227]
[1743750545781,6.08434,1806.9,1806.8,11.457]
[1743750547277,9.08434,1806.9,1806.8,6.11]
[1743750547475,13.59091743,1806.9,1806.8,6.11]
[1743750547791,9.08434,1806.9,1806.8,6.11]
[1743750547954,9.08434,1806.9,1806.8,6.8608]
[1743750549696,8.53434,1806.9,1806.8,6.8608]
[1743750552115,11.0683,1807.0,1806.8,6.8608]
[1743750552317,5.53403,1807.0,1806.8,6.8608]
[1743750552472,11.06833,1807.0,1806.8,7.54688]
[1743750553013,5.53403,1807.0,1806.8,7.54688]
[1743750553183,11.06824,1807.0,1806.8,7.54688]
[1743750554016,5.53434,1806.9,1806.8,7.54688]
[1743750555155,6.08376,1807.1,1806.8,7.54688]
[1743750555452,6.08376,1807.1,1806.9,0.754688]
[1743750555607,5.53403,1807.0,1806.8,6.8608]
[1743750555810,8.07368043,1807.3,1806.9,16.97425]
[1743750556005,5.53327,1807.3,1807.1,0.7508]
[1743750556210,5.5323,1807.6,1807.2,6.11]
[1743750556458,5.5323,1807.6,1807.3,11.442]
[1743750556655,5.5323,1807.6,1807.4,6.8608]
[1743750558248,11.0647,1807.6,1807.4,6.8608]
[1743750558542,5.5325,1807.5,1807.4,6.8608]
[1743750558744,11.06469,1807.6,1807.4,6.8608]
[1743750558907,5.5323,1807.6,1807.4,6.8608]
[1743750559107,5.5323,1807.6,1807.4,8.2498337]
[1743750559550,5.5325,1807.5,1807.4,8.2498337]
[1743750559750,6.0825,1807.5,1807.4,6.11]
[1743750561096,5.5323,1807.6,1807.4,6.11]
[1743750561222,8.5317,1807.8,1807.5,0.7753]
[1743750561542,1.27288026,1807.9,1807.7,0.7753]
[1743750561543,0.04446841,1807.9,1807.7,0.7753]
[1743750561845,0.55,1808.0,1807.9,6.84083159]
[1743750562044,0.55,1808.0,1807.9,13.58988475]
[1743750562249,0.1,1808.9,1808.0,5.53071]
[1743750562546,0.1,1808.9,1808.7,0.7753]
[1743750562852,0.1,1808.9,1808.8,11.47153159]
[1743750563351,0.1,1808.9,1808.8,17.00005159]
[1743750563559,0.1,1808.9,1808.8,12.29533159]
[1743750563750,0.1,1808.9,1808.8,17.82385159]
[1743750563915,0.1,1808.9,1808.8,19.36223039]
[1743750564263,0.1,1809.9,1809.3,0.8238]
[1743750564415,0.1,1809.9,1809.4,50.131]
[1743750564756,5.52587,1809.7,1809.5,5.455]
[1743750564955,11.05194,1809.7,1809.5,5.455]
[1743750565156,5.52587,1809.7,1809.5,5.455]
[1743750565636,5.52587,1809.7,1809.5,5.51026051]
[1743750565837,5.62545,1809.9,1809.5,6.67278316]
[1743750566155,5.62544,1809.9,1809.5,6.67278316]
[1743750566319,0.1,1809.9,1809.8,6.34927]
[1743750566520,0.1,1809.9,1809.8,6.40451588]
[1743750567030,0.1,1809.9,1809.8,0.87903986]
[1743750567231,0.1,1809.9,1809.8,2.30499864]
[1743750567432,0.1,1809.9,1809.8,6.34927]
[1743750567756,0.1,1809.9,1809.8,0.8238]
[1743750569034,0.1,1809.9,1809.8,6.2788]
[1743750569342,0.1,1809.9,1809.8,5.455]
[1743750570627,0.1,1809.9,1809.8,10.98047]
[1743750570830,0.1,1809.9,1809.8,12.63660556]
[1743750571168,5.52427,1810.2,1810.1,5.96553159]
[1743750571320,5.52427,1810.2,1810.1,11.43353159]
[1743750571527,6.07427,1810.2,1810.1,11.43353159]
[1743750572065,5.52427,1810.2,1810.1,11.43353159]
[1743750573677,5.49563238,1810.2,1810.1,11.43353159]
[1743750575136,6.04563238,1810.2,1810.1,11.43353159]
[1743750576144,5.49563238,1810.2,1810.1,11.43353159]
[1743750577257,6.04563238,1810.2,1810.1,11.43353159]
[1743750577670,10.88342179,1810.2,1810.1,5.96553159]
[1743750578057,9.85403238,1810.2,1810.1,5.96553159]
[1743750579170,6.33603,1810.5,1810.1,5.96553159]
[1743750579492,5.52368,1810.4,1810.2,5.96553159]
[1743750579677,5.52394,1810.3,1810.2,5.96553159]
[1743750579856,0.012,1810.8,1810.2,5.96553159]
[1743750580058,0.012,1810.8,1810.5,0.8319]
[1743750580263,5.52153,1811.1,1810.9,5.85353159]
[1743750580459,5.52153,1811.1,1811.0,11.36853159]
[1743750580660,5.52121,1811.2,1811.0,11.36853159]
[1743750580860,5.5215,1811.1,1811.0,11.36853159]
[1743750581186,6.33285,1811.5,1811.0,11.36853159]
[1743750581187,0.16814617,1811.8,1811.0,12.50538475]
[1743750581480,5.5212,1811.2,1811.1,5.85353159]
[1743750581647,5.5212,1811.2,1811.1,11.42053159]
[1743750584181,6.0712,1811.2,1811.1,11.42053159]
[1743750586589,6.0712,1811.2,1811.1,5.85353159]
[1743750586590,9.0712,1811.2,1811.1,5.85353159]
[1743750586886,10.611664,1811.2,1811.1,5.85353159]
[1743750589766,8.5215,1811.1,1811.0,0.03338846]
[1743750590150,8.9354933,1811.1,1811.0,0.03338846]
[1743750595807,8.9354933,1811.1,1811.0,8.46e-06]
[1743750595808,10.2962933,1811.1,1811.0,8.46e-06]
[1743750595990,12.23919268,1811.1,1811.0,8.46e-06]
[1743750601425,9.4854933,1811.1,1811.0,8.46e-06]
[1743750601718,9.4854933,1811.1,1811.0,5.51300846]
[1743750601891,5.5215,1811.1,1811.0,5.51301005]
[1743750602420,5.5215,1811.1,1811.0,6.26491005]
[1743750602743,5.5215,1811.1,1811.0,5.51301005]
[1743750604320,5.5215,1811.1,1811.0,5.51300159]
[1743750604632,7.17577,1811.1,1811.0,5.51300159]
[1743750605436,5.5215,1811.1,1811.0,5.51300159]
[1743750607333,8.5215,1811.1,1811.0,6.26490159]
[1743750607538,8.93840368,1811.1,1811.0,6.26490159]
[1743750608206,8.93840368,1811.1,1811.0,5.51300159]
[1743750608609,5.5212,1811.2,1811.0,5.51300159]
[1743750608912,5.5212,1811.2,1811.0,6.06430175]
[1743750609636,8.5215,1811.1,1811.0,6.06430175]
[1743750609844,8.5215,1811.1,1811.0,5.51300159]
[1743750612017,11.95333655,1811.1,1811.0,1.59e-06]
[1743750612217,8.52181,1811.0,1810.9,5.498]
[1743750614541,0.55,1811.4,1810.9,5.498]
[1743750614740,6.0707,1811.4,1811.0,0.84390508]
[1743750615053,5.52122,1811.2,1811.0,0.7887]
[1743750615219,5.52111,1811.3,1811.1,0.05520918]
[1743750615422,6.07071,1811.4,1811.1,0.05520918]
[1743750615638,11.59151,1811.4,1811.1,0.05520918]
[1743750615951,5.5209,1811.3,1811.0,0.7887]
[1743750616133,6.07071,1811.4,1811.0,0.7887]
[1743750616346,0.55,1811.4,1811.0,0.7887]
[1743750616638,6.0706,1811.4,1811.1,0.7887]
[1743750616843,6.0706,1811.4,1811.1,1.419741]
[1743750617014,5.52102,1811.3,1811.1,0.7887]
[1743750617810,5.5212,1811.2,1811.1,0.7887]
[1743750618015,5.5212,1811.2,1811.1,0.78870159]
[1743750618826,5.5212,1811.2,1811.1,6.28670159]
[1743750619510,5.52102,1811.3,1811.1,6.28670159]
[1743750619715,5.5212,1811.2,1811.1,6.28670159]
[1743750620854,5.5212,1811.2,1811.1,5.49800159]
[1743750621017,5.5212,1811.2,1811.1,5.49000159]
[1743750625859,5.5212,1811.2,1811.1,1.59e-06]
[1743750626072,8.52181,1811.0,1810.9,39.75500159]
[1743750626229,8.52181,1811.0,1810.9,45.23500159]
[1743750627571,8.52181,1811.0,1810.9,46.02130159]
[1743750628552,8.52181,1811.0,1810.9,45.23500159]
[1743750631873,13.800153,1811.0,1810.9,45.23500159]
[1743750632860,8.52181,1811.0,1810.9,45.23500159]
[1743750633176,9.07181,1811.0,1810.9,45.23500159]
[1743750633347,8.52181,1811.0,1810.9,5.48000159]
[1743750637900,8.52181,1811.0,1810.9,1.59e-06]
[1743750638055,8.52181,1811.0,1810.9,5.46500159]
[1743750638389,14.198493,1811.0,1810.9,1.59e-06]
[1743750638692,8.83711,1810.9,1810.8,5.464]
[1743750639392,9.28112,1810.7,1810.6,1.59e-06]
[1743750639567,12.59612,1810.7,1810.6,5.46600159]
[1743750639992,13.14612,1810.7,1810.6,5.46600159]
[1743750640167,15.30116966,1810.7,1810.6,5.466]
[1743750640602,8.52333,1810.5,1810.4,1.59e-06]
[1743750640770,8.52333,1810.5,1810.4,5.47100159]
[1743750641107,5.52364,1810.4,1810.3,45.22600159]
[1743750641266,13.02887655,1810.4,1810.3,1.59e-06]
[1743750641462,17.82007355,1810.4,1810.3,1.59e-06]
[1743750642082,12.38894,1810.3,1810.2,5.474]
[1743750642390,5.52547,1809.8,1809.7,1.59e-06]
[1743750642555,5.52547,1809.8,1809.7,5.47200159]
[1743750643089,11.84047,1809.8,1809.7,1.59e-06]
[1743750643253,8.52547,1809.8,1809.7,5.47400159]
[1743750643887,8.93718043,1809.8,1809.7,5.47400159]
[1743750644306,9.48718043,1809.8,1809.7,1.59e-06]
[1743750645671,8.93718043,1809.8,1809.7,1.59e-06]
[1743750648284,9.48718043,1809.8,1809.7,1.59e-06]
[1743750648602,8.52547,1809.8,1809.7,1.59e-06]
[1743750648831,5.52528,1809.9,1809.7,1.38705591]
[1743750649131,5.52434,1810.2,1809.8,6.31046]
[1743750649306,5.52394,1810.3,1810.0,0.785]
[1743750649506,5.52394,1810.3,1810.1,5.52123948]
[1743750649712,5.52425,1810.2,1810.1,6.09662395]
[1743750650078,5.52375,1810.4,1810.1,6.09662554]
[1743750650278,5.52357,1810.5,1810.3,0.785]
[1743750650529,8.52357,1810.5,1810.4,1.59e-06]
[1743750658034,5.52357,1810.5,1810.4,1.59e-06]
[1743750658339,5.94659012,1810.6,1810.4,1.59e-06]
[1743750658527,5.52275,1810.7,1810.5,5.44000159]
[1743750658733,5.52097,1811.3,1810.6,0.54400175]